bitfinex/quotes_SOLUSD_20240920
["timestamp","ask_amount","ask_price","bid_price","bid_amount"]
[1726817141727,6.3531,150.5,150.45,6.6466]
[1726817142019,6.3531,150.5,150.41,20.0]
[1726817142317,6.6455,150.48,150.43,6.6472]
[1726817142524,6.6455,150.48,150.44,6.6471]
[1726817143021,6.3531,150.5,150.45,6.6463]
[1726817143211,12.9976,150.5,150.45,6.6463]
[1726817143413,6.3531,150.5,150.46,6.6462]
[1726817143715,6.3531,150.5,150.4,16.5331]
[1726817143716,12.9976,150.5,150.43,20.0]
[1726817143922,6.3531,150.5,150.46,6.6462]
[1726817144131,12.9976,150.5,150.46,6.6462]
[1726817144300,23.776884,150.48,150.43,20.0]
[1726817144499,23.776884,150.48,150.44,6.6467]
[1726817144712,23.776884,150.48,150.45,36.6463]
[1726817144922,13.12319,150.5,150.45,30.0]
[1726817144923,23.776884,150.49,150.45,30.0]
[1726817145105,6.3531,150.5,150.45,30.0]
[1726817145307,6.6561,150.54,150.45,30.0]
[1726817145723,1.66131823,150.53,150.45,30.0]
[1726817146434,8.30491823,150.53,150.48,6.6451]
[1726817147021,13.2988,150.54,150.49,6.6449]
[1726817147228,13.42429,150.54,150.49,6.6449]
[1726817147413,6.6432,150.53,150.48,6.6453]
[1726817147617,1.6612072,150.52,150.48,6.6453]
[1726817147809,1.66132058,150.51,150.48,6.6453]
[1726817148020,23.776884,150.5,150.47,6.6457]
[1726817148327,23.776884,150.5,150.48,30.0]
[1726817148908,23.776884,150.51,150.48,30.0]
[1726817151123,23.776884,150.51,150.48,6.6454]
[1726817151502,23.902374,150.52,150.48,6.6454]
[1726817151713,0.12549,150.51,150.47,6.6457]
[1726817152019,23.902374,150.51,150.47,6.6457]
[1726817154028,23.776884,150.51,150.48,6.6453]
[1726817154233,23.776884,150.52,150.48,6.6453]
[1726817155508,23.776884,150.52,150.46,20.0]
[1726817155704,0.12549,150.53,150.47,31.00761489]
[1726817155705,23.902374,150.53,150.47,31.00761489]
[1726817155928,6.7030305,150.54,150.47,30.0]
[1726817156308,6.7030305,150.54,150.48,20.0]
[1726817157012,13.3457305,150.54,150.48,20.0]
[1726817157416,24.153354,150.53,150.47,30.0]
[1726817157723,23.776884,150.5,150.47,30.0]
[1726817157921,23.776884,150.52,150.47,30.0]
[1726817158635,23.776884,150.52,150.45,20.0]
[1726817159333,23.776884,150.52,150.48,6.645]
[1726817159629,23.902374,150.53,150.47,20.0]
[1726817160046,23.776884,150.53,150.48,1.00762088]
[1726817160209,0.0469305,150.54,150.51,20.0]
[1726817161326,0.0469305,150.54,150.51,50.0]
[1726817162232,0.0469305,150.54,150.51,30.0]
[1726817162415,0.2979105,150.54,150.47,20.0]
[1726817162622,24.0747945,150.54,150.48,30.0]
[1726817162825,23.902374,150.52,150.46,16.5031]
[1726817164228,23.902374,150.52,150.47,20.0]
[1726817164441,1.66127296,150.51,150.47,20.0]
[1726817164619,23.902374,150.52,150.47,20.0]
[1726817165946,1.6612723,150.51,150.47,20.0]
[1726817166233,1.6612723,150.51,150.46,16.5031]
[1726817166646,23.902374,150.52,150.46,16.5031]
[1726817166943,1.66127256,150.51,150.46,16.5031]
[1726817167240,1.66127256,150.51,150.45,20.0]
[1726817168341,23.776884,150.5,150.45,20.0]
[1726817168934,6.4025,150.52,150.45,20.0]
[1726817169137,6.4025,150.52,150.49,6.6447]
[1726817169330,6.4025,150.52,150.46,21.22136554]
[1726817169640,6.4025,150.52,150.5,6.6444]
[1726817170225,0.0469305,150.54,150.48,21.22136554]
[1726817170444,0.0469305,150.54,150.49,20.0]
[1726817170739,0.0469305,150.54,150.5,22.22826694]
[1726817170940,0.0469305,150.54,150.51,20.0]
[1726817171118,0.0469305,150.54,150.52,21.22136554]
[1726817171319,0.0469305,150.54,150.53,20.0]
[1726817172629,0.0469305,150.54,150.49,20.0]
[1726817172817,0.0469305,150.54,150.52,20.0]
[1726817173753,0.0469305,150.54,150.53,41.22136554]
[1726817175441,0.0469305,150.54,150.51,20.0]
[1726817175643,0.0469305,150.54,150.51,41.22136554]
[1726817176729,0.0469305,150.54,150.53,41.22136554]
[1726817179240,0.2576063,150.58,150.54,26.65]
[1726817179450,0.2576063,150.58,150.57,21.22136554]
[1726817179827,0.2576063,150.58,150.57,41.22136554]
[1726817182360,0.2576063,150.58,150.56,20.0]
[1726817182952,0.2576063,150.58,150.54,20.0]
[1726817183247,0.2576063,150.58,150.53,36.68536554]
[1726817183248,0.2576063,150.58,150.56,20.0]
[1726817187542,0.2576063,150.58,150.54,20.0]
[1726817188948,25.69498302,150.58,150.52,20.0]
[1726817189154,30.0415903,150.58,150.52,20.0]
[1726817189527,30.0415903,150.58,150.51,21.22136554]
[1726817189748,1.66049254,150.57,150.49,37.47896554]
[1726817190143,6.6432,150.53,150.45,37.06486554]
[1726817190345,23.776884,150.54,150.46,30.0]
[1726817190831,23.776884,150.56,150.47,21.22136554]
[1726817191043,23.902374,150.55,150.47,21.22136554]
[1726817191247,1.66095457,150.54,150.47,21.22136554]
[1726817191839,23.776884,150.53,150.48,20.0]
[1726817192347,0.12549,150.55,150.48,20.0]
[1726817193469,23.902374,150.55,150.48,20.0]
[1726817196765,23.776884,150.55,150.48,20.0]
[1726817197345,23.776884,150.57,150.49,21.22136554]
[1726817197549,23.776884,150.57,150.5,20.0]
[1726817199376,25.43758185,150.57,150.5,20.0]
[1726817199756,23.776884,150.57,150.5,20.0]
[1726817201090,23.776884,150.57,150.45,15.8435]
[1726817201091,6.0331,150.56,150.47,20.0]
[1726817201366,0.37647,150.53,150.42,1.41191729]
[1726817201569,23.902374,150.5,150.42,0.2576063]
[1726817201749,23.776884,150.48,150.42,0.2576063]
[1726817201938,0.37647,150.47,150.42,0.2576063]
[1726817202145,23.776884,150.45,150.42,0.2576063]
[1726817202345,1.66205137,150.44,150.42,0.2576063]
[1726817202569,23.776884,150.45,150.42,0.2576063]
[1726817202773,23.776884,150.46,150.42,0.2576063]
[1726817202946,0.12549,150.45,150.42,0.2576063]
[1726817204274,24.153354,150.43,150.42,0.2576063]
[1726817204468,25.81574883,150.43,150.42,0.2576063]
[1726817207063,24.153354,150.43,150.42,0.2576063]
[1726817208073,24.153354,150.41,150.38,0.2576063]
[1726817208372,24.153354,150.39,150.38,0.2576063]
[1726817208581,25.81624154,150.39,150.38,0.2576063]
[1726817208765,30.802654,150.39,150.38,0.2576063]
[1726817210082,52.46558844,150.39,150.38,0.2576063]
[1726817210359,52.46558844,150.39,150.35,0.0708023]
[1726817210360,24.153354,150.36,150.35,0.0708023]
[1726817211189,30.804054,150.36,150.35,0.0708023]
[1726817211376,32.46749349,150.36,150.35,0.0708023]
[1726817212584,24.153354,150.36,150.35,0.0708023]
[1726817213270,30.804054,150.36,150.35,0.0708023]
[1726817213962,24.153354,150.36,150.35,0.0708023]
[1726817214384,30.804054,150.36,150.35,0.0708023]
[1726817214956,6.6515,150.34,150.33,0.2576063]
[1726817215285,30.804854,150.34,150.33,0.2576063]
[1726817215484,32.4683729,150.34,150.33,0.2576063]
[1726817215863,24.153354,150.34,150.33,0.2576063]
[1726817216376,23.902374,150.34,150.33,0.2576063]
[1726817216757,23.776884,150.34,150.33,0.2576063]
[1726817218490,23.902374,150.34,150.33,0.2576063]
[1726817219079,24.153354,150.34,150.33,0.2576063]
[1726817219760,23.902374,150.34,150.33,0.2576063]
[1726817220587,6.6501,150.38,150.33,0.2576063]
[1726817220767,1.66307155,150.37,150.33,0.2576063]
[1726817220968,8.31347155,150.37,150.33,0.2576063]
[1726817221385,6.6512,150.35,150.33,0.2576063]
[1726817221772,23.902374,150.34,150.33,0.2576063]
[1726817222089,30.804854,150.34,150.33,0.2576063]
[1726817223565,6.6524,150.32,150.31,0.1054868]
[1726817223789,53.69096403,150.32,150.31,0.1054868]
[1726817225708,25.81719849,150.32,150.31,0.1054868]
[1726817225905,24.027864,150.32,150.31,0.1054868]
[1726817226212,6.90338,150.32,150.31,0.1054868]
[1726817226700,0.25098,150.32,150.31,0.1054868]
[1726817227073,6.90338,150.32,150.31,0.1054868]
[1726817227268,7.02887,150.32,150.31,0.1054868]
[1726817227479,30.805754,150.32,150.31,0.1054868]
[1726817227797,32.46934954,150.32,150.31,0.1054868]
[1726817228000,30.805754,150.32,150.31,0.1054868]
[1726817231979,32.46945625,150.32,150.31,0.1054868]
[1726817232379,53.69082179,150.32,150.31,0.1054868]
[1726817233482,52.02711954,150.32,150.31,0.1054868]
[1726817235480,30.805754,150.32,150.31,0.1054868]
[1726817235798,32.46947603,150.32,150.31,0.1054868]
[1726817236501,24.153354,150.32,150.31,0.1054868]
[1726817237087,30.805754,150.32,150.31,0.1054868]
[1726817237797,6.5253,150.34,150.31,0.1054868]
[1726817238607,27.42776554,150.38,150.31,0.1054868]
[1726817238786,6.6511,150.36,150.31,6.7581868]
[1726817238983,27.42776554,150.38,150.31,0.1054868]
[1726817238984,6.6513,150.35,150.31,0.1054868]
[1726817239501,6.6506,150.37,150.32,6.6524]
[1726817240082,8.31366156,150.37,150.32,6.6524]
[1726817240985,30.804054,150.36,150.32,6.6524]
[1726817241190,1.66305796,150.35,150.32,6.6524]
[1726817241384,23.776884,150.34,150.32,6.6524]
[1726817242108,23.776884,150.35,150.32,6.6524]
[1726817242286,23.776884,150.33,150.31,0.1054868]
[1726817242607,23.776884,150.33,150.31,6.7583868]
[1726817243187,23.776884,150.33,150.31,0.1054868]
[1726817245204,23.776884,150.34,150.31,0.1054868]
[1726817245586,23.776884,150.34,150.3,6.6532]
[1726817245781,23.776884,150.34,150.3,6.7191842]
[1726817247084,25.44010471,150.34,150.3,6.7191842]
[1726817247399,0.37647,150.33,150.3,0.0659842]
[1726817249414,30.428484,150.34,150.3,0.0659842]
[1726817249988,30.679064,150.35,150.3,6.7192842]
[1726817250707,6.6507,150.36,150.3,0.0659842]
[1726817250907,6.6507,150.36,150.31,6.6528]
[1726817251409,7.96734791,150.35,150.3,6.7191842]
[1726817251595,1.66310579,150.34,150.3,6.7191842]
[1726817254111,1.66310493,150.34,150.3,6.7191842]
[1726817254902,6.6512,150.35,150.3,6.7191842]
[1726817255296,1.66310249,150.34,150.31,6.6529]
[1726817256511,23.776884,150.34,150.31,6.6529]
[1726817256684,23.776884,150.34,150.3,6.7191842]
[1726817257522,16.87790257,150.39,150.3,6.7191842]
[1726817257523,6.6498,150.39,150.3,21.28734974]
[1726817257832,6.2554,150.46,150.36,21.22136554]
[1726817257987,6.2554,150.46,150.39,13.59585187]
[1726817257988,19.85125187,150.46,150.39,13.59585187]
[1726817258187,13.59585187,150.46,150.41,6.6484]
[1726817258409,20.50149008,150.48,150.4,1.00950115]
[1726817258587,20.50149008,150.48,150.43,6.6475]
[1726817259122,27.14699008,150.48,150.43,6.6475]
[1726817259423,6.6458,150.47,150.42,6.648]
[1726817259784,20.50149008,150.48,150.41,13.59585187]
[1726817260106,6.9029063,150.49,150.42,6.6479]
[1726817260686,0.2576063,150.49,150.42,6.6479]
[1726817261491,0.2576063,150.49,150.44,6.6471]
[1726817261686,0.2576063,150.49,150.44,26.6471]
[1726817263323,6.9026063,150.49,150.44,26.6471]
[1726817263520,0.2576063,150.49,150.44,26.6471]
[1726817265334,0.2576063,150.49,150.4,22.61611305]
[1726817265517,23.776884,150.46,150.4,6.6485]
[1726817265829,23.776884,150.46,150.39,22.61]
[1726817266605,30.423184,150.46,150.41,6.6484]
[1726817267214,30.423184,150.46,150.39,22.61]
[1726817267215,23.776884,150.44,150.39,22.61]
[1726817267518,23.776884,150.44,150.37,6.65]
[1726817267705,23.776884,150.4,150.35,22.0419]
[1726817268310,0.37647,150.44,150.35,15.3908]
[1726817268510,24.153354,150.44,150.35,15.3908]
[1726817269312,23.776884,150.42,150.37,6.6498]
[1726817269722,23.776884,150.4,150.37,20.0]
[1726817269925,30.424884,150.42,150.37,20.0]
[1726817272933,30.424884,150.42,150.37,6.6502]
[1726817273821,23.776884,150.42,150.37,6.6502]
[1726817274006,23.776884,150.42,150.38,6.6497]
[1726817274206,23.776884,150.42,150.41,6.6484]
[1726817274403,0.12549,150.44,150.4,6.6488]
[1726817274808,30.6811903,150.45,150.4,6.6488]
[1726817275132,6.9043063,150.45,150.4,6.6488]
[1726817275309,6.9043063,150.45,150.39,6.6493]
[1726817276336,24.0344903,150.45,150.38,6.6498]
[1726817276838,6.6476,150.43,150.38,6.6498]
[1726817277432,32.3436384,150.45,150.39,6.6493]
[1726817278205,6.6473,150.44,150.39,6.6493]
[1726817278435,23.776884,150.43,150.39,6.6493]
[1726817281734,23.776884,150.44,150.36,41.23771305]
[1726817282416,23.776884,150.44,150.41,6.6484]
[1726817282613,24.0344903,150.45,150.38,21.23771305]
[1726817282915,0.2576063,150.45,150.42,6.6478]
[1726817283226,0.2576063,150.45,150.41,6.6484]
[1726817283935,0.2576063,150.45,150.39,20.0]
[1726817284114,6.6476,150.43,150.37,20.0]
[1726817284317,6.6472,150.44,150.39,6.6493]
[1726817284615,23.776884,150.43,150.39,6.6493]
[1726817287231,30.424784,150.43,150.37,26.6498]
[1726817287436,23.776884,150.43,150.37,20.0]
[1726817288022,23.776884,150.43,150.38,13.59817311]
[1726817288416,30.424084,150.44,150.39,6.6493]
[1726817289037,23.776884,150.44,150.4,6.6487]
[1726817289217,0.2576063,150.45,150.4,13.59817311]
[1726817289413,0.2576063,150.45,150.42,6.648]
[1726817289613,6.9044063,150.45,150.4,6.6485]
[1726817289833,0.2576063,150.45,150.41,6.6481]
[1726817291246,6.9043063,150.45,150.39,13.59817311]
[1726817291445,23.776884,150.44,150.39,13.59817311]
[1726817293438,23.776884,150.44,150.4,6.6485]
[1726817294549,0.2576063,150.45,150.4,20.0]
[1726817294746,0.2576063,150.45,150.41,14.60725149]
[1726817295635,0.2576063,150.45,150.42,6.6479]
[1726817297446,0.2576063,150.45,150.43,6.6475]
[1726817297635,0.2576063,150.45,150.43,21.25472098]
[1726817298546,0.2576063,150.45,150.43,20.24567311]
[1726817299964,0.2576063,150.45,150.43,6.6475]
[1726817300450,0.2576063,150.45,150.43,7.65618363]
[1726817300861,0.2576063,150.45,150.43,6.6475]
[1726817301441,0.2576063,150.45,150.36,22.06912329]
[1726817301653,0.2576063,150.45,150.41,20.0]
[1726817302038,0.2576063,150.45,150.43,5.0]
[1726817308271,0.2576063,150.45,150.43,11.6475]
[1726817311248,0.2576063,150.45,150.43,5.0]
[1726817311770,0.2576063,150.45,150.43,11.6475]
[1726817312969,0.2576063,150.45,150.44,21.25388804]
[1726817313176,0.2576063,150.45,150.44,20.24527311]
[1726817315271,0.2576063,150.45,150.44,40.24527311]
[1726817315773,0.2576063,150.45,150.44,26.6471]
[1726817316559,0.2576063,150.45,150.44,20.0]
[1726817316871,0.2576063,150.45,150.44,26.6471]
[1726817317178,0.2576063,150.45,150.44,6.6471]
[1726817321664,0.2576063,150.45,150.43,5.0]
[1726817321870,0.2576063,150.45,150.43,11.6475]
[1726817322068,0.2576063,150.45,150.43,5.0]
[1726817322262,6.9045063,150.45,150.43,5.0]
[1726817322757,0.2576063,150.45,150.43,5.0]
[1726817323475,6.9044063,150.45,150.43,5.0]
[1726817323657,23.776884,150.44,150.43,5.0]
[1726817325174,6.3754063,150.45,150.43,5.0]
[1726817325572,6.3754063,150.45,150.43,11.6475]
[1726817325876,0.2576063,150.45,150.44,6.6471]
[1726817326366,0.2576063,150.45,150.43,5.0]
[1726817327454,0.2576063,150.45,150.43,11.6474]
[1726817329861,0.2576063,150.45,150.44,21.00866569]
[1726817331181,0.2576063,150.45,150.44,20.0]
[1726817331475,0.2576063,150.45,150.44,20.37647]
[1726817332275,0.2576063,150.45,150.44,20.0]
[1726817332880,0.2576063,150.45,150.44,33.84915311]
[1726817333379,0.2576063,150.45,150.44,40.62464311]
[1726817334484,0.2576063,150.49,150.45,0.37647]
[1726817334681,0.2576063,150.49,150.48,13.59817311]
[1726817334869,0.2576063,150.49,150.48,33.59817311]
[1726817335460,0.2576063,150.49,150.44,20.0]
[1726817335681,0.2576063,150.49,150.47,20.0]
[1726817337795,23.776884,150.47,150.43,5.0]
[1726817338083,23.776884,150.45,150.43,5.0]
[1726817338267,25.43879793,150.45,150.43,5.0]
[1726817338464,32.08559793,150.45,150.43,5.0]
[1726817339387,44.02215711,150.44,150.43,5.0]
[1726817339784,44.39862711,150.44,150.43,5.0]
[1726817339980,50.74162711,150.44,150.43,5.0]
[1726817340784,36.892474,150.44,150.43,5.0]
[1726817340964,30.245374,150.44,150.43,5.0]
[1726817341783,30.119884,150.44,150.43,5.0]
[1726817341985,6.343,150.44,150.43,5.0]
[1726817344583,30.119884,150.44,150.43,5.0]
[1726817345976,60.0486163,150.44,150.43,5.0]
[1726817346283,6.6485,150.41,150.32,24.28942044]
[1726817346484,8.3108159,150.41,150.32,24.28942044]
[1726817346679,8.3108159,150.41,150.32,22.2704]
[1726817346680,23.776884,150.4,150.32,22.2704]
[1726817346883,23.776884,150.39,150.32,22.2704]
[1726817347274,23.776884,150.39,150.33,20.3235905]
[1726817347488,23.776884,150.4,150.35,6.6507]
[1726817348271,23.776884,150.4,150.36,6.6504]
[1726817348488,23.776884,150.41,150.37,6.65]
[1726817348880,23.902374,150.42,150.37,6.65]
[1726817349587,25.56467396,150.42,150.37,6.65]
[1726817349762,25.56467396,150.42,150.33,20.3235905]
[1726817349763,6.6485,150.41,150.36,6.6507]
[1726817349963,1.66244679,150.4,150.36,6.6507]
[1726817350385,23.776884,150.39,150.36,6.6507]
[1726817351677,23.776884,150.4,150.36,6.6507]
[1726817351872,21.36866935,150.42,150.37,6.6501]
[1726817352079,23.776884,150.41,150.37,6.6501]
[1726817355172,43.96635935,150.44,150.33,20.3235905]
[1726817355173,23.776884,150.43,150.33,20.3235905]
[1726817355786,1.66218508,150.42,150.33,20.3235905]
[1726817355984,23.776884,150.41,150.33,20.3235905]
[1726817356566,23.776884,150.41,150.37,6.6502]
[1726817359396,25.43919666,150.41,150.37,6.6502]
[1726817362077,23.776884,150.42,150.38,6.6496]
[1726817362395,8.31033251,150.42,150.37,6.6501]
[1726817364095,21.91459319,150.42,150.37,6.6501]
[1726817364494,21.91459319,150.42,150.34,13.60426068]
[1726817364495,15.26649319,150.42,150.35,20.0]
[1726817364793,15.26649319,150.42,150.38,6.6497]
[1726817366482,1.66223251,150.42,150.35,33.60426068]
[1726817366998,23.776884,150.43,150.37,33.60426068]
[1726817367204,6.6458,150.47,150.42,6.6479]
[1726817367496,20.25006068,150.47,150.42,6.6479]
[1726817368000,6.6458,150.47,150.42,6.6479]
[1726817369084,23.776884,150.46,150.42,6.6479]
[1726817369284,15.26605682,150.45,150.4,26.6485]
[1726817369490,13.60426068,150.44,150.4,20.0]
[1726817370004,23.776884,150.43,150.4,6.6488]
[1726817370404,23.776884,150.44,150.4,6.6488]
[1726817371804,23.776884,150.44,150.41,6.6484]
[1726817372101,27.89574498,150.47,150.42,6.6479]
[1726817373402,23.776884,150.46,150.42,6.6479]
[1726817373899,25.43869238,150.46,150.42,6.6479]
[1726817374112,23.776884,150.46,150.42,6.6479]
[1726817374606,23.776884,150.46,150.33,2.36593838]
[1726817374607,19.98,150.41,150.29,0.2576063]
[1726817374807,28.73338,150.3,150.29,6.4876063]
[1726817375108,28.73338,150.3,150.21,1.0]
[1726817375109,0.12549,150.28,150.21,1.0]
[1726817375513,6.6547,150.27,150.21,1.0]
[1726817375685,0.12549,150.28,150.21,1.0]
[1726817375686,6.6551,150.26,150.21,1.0]
[1726817375890,1.44081641,150.28,150.21,1.0]
[1726817376102,0.25098,150.27,150.21,1.0]
[1726817376413,1.66410361,150.26,150.21,1.0]
[1726817377314,1.66414097,150.25,150.21,1.0]
[1726817378305,24.153354,150.24,150.21,1.0]
[1726817378511,1.31474371,150.23,150.21,1.0]
[1726817379810,0.12549,150.24,150.21,1.0]
[1726817380218,0.12549,150.24,150.21,1.0918483]
[1726817380509,0.12549,150.25,150.21,1.0918483]
[1726817380709,1.78978441,150.25,150.21,1.0918483]
[1726817383819,0.37647,150.26,150.21,1.0918483]
[1726817383999,2.04065218,150.26,150.21,1.0918483]
[1726817386712,0.37647,150.26,150.21,1.0918483]
[1726817387011,1.66418226,150.25,150.21,1.0918483]
[1726817387914,2.04065286,150.26,150.21,1.0918483]
[1726817393404,1.66418286,150.26,150.21,1.0918483]
[1726817393605,1.66401701,150.28,150.21,1.0918483]
[1726817394808,0.12549,150.27,150.21,1.0918483]
[1726817395102,1.78950468,150.27,150.21,1.0918483]
[1726817396013,0.12549,150.27,150.21,1.0918483]
[1726817396212,1.78950682,150.27,150.21,1.0918483]
[1726817397712,0.25098,150.26,150.21,1.0918483]
[1726817397915,0.12549,150.25,150.21,1.0918483]
[1726817398319,1.66414881,150.26,150.21,1.0918483]
[1726817399028,1.78962051,150.27,150.21,1.0918483]
[1726817399233,1.66412945,150.26,150.21,1.0918483]
[1726817400239,1.78956349,150.27,150.21,1.0918483]
[1726817400529,0.12549,150.29,150.22,27.45904498]
[1726817400731,0.12549,150.29,150.23,20.0]
[1726817401033,21.24954498,150.3,150.21,1.0918483]
[1726817401216,0.12549,150.26,150.21,1.0918483]
[1726817401713,0.12549,150.28,150.21,1.0918483]
[1726817402429,0.12549,150.29,150.21,1.0918483]
[1726817402947,8.6941671,150.29,150.21,21.0918483]
[1726817403125,0.37647,150.29,150.21,21.0918483]
[1726817404718,23.1196,150.34,150.26,15.5045]
[1726817404719,1.31532181,150.34,150.26,15.5045]
[1726817404925,1.66369293,150.33,150.26,15.5045]
[1726817405112,1.66368984,150.32,150.26,15.5045]
[1726817405729,8.31618984,150.32,150.26,15.5045]
[1726817406118,30.806354,150.31,150.23,27.40324498]
[1726817406437,24.153354,150.29,150.24,20.0]
[1726817406637,0.37647,150.29,150.24,20.0]
[1726817406815,20.0,150.34,150.24,20.0]
[1726817407156,21.66360012,150.34,150.24,20.0]
[1726817407427,6.6531,150.31,150.24,20.0]
[1726817408016,0.12549,150.3,150.24,20.0]
[1726817408417,0.12549,150.29,150.24,20.0]
[1726817410219,6.6525,150.32,150.24,20.0]
[1726817410417,0.12549,150.31,150.24,20.0]
[1726817411435,0.1854298,150.35,150.25,21.24954498]
[1726817411635,0.1854298,150.35,150.26,20.0]
[1726817411940,1.84894949,150.35,150.24,20.0]
[1726817412236,21.24954498,150.33,150.24,20.0]
[1726817412437,6.6533,150.3,150.24,20.0]
[1726817412738,8.31672804,150.32,150.24,20.0]
[1726817412919,30.806254,150.31,150.24,20.0]
[1726817413319,30.806254,150.31,150.23,6.1537]
[1726817414011,44.43116695,150.31,150.23,19.77861295]
[1726817414522,24.153354,150.31,150.25,13.62491295]
[1726817415039,20.0,150.32,150.25,13.62491295]
[1726817415418,13.62491295,150.33,150.25,13.62491295]
[1726817415739,20.27691295,150.33,150.25,13.62491295]
[1726817416325,24.153354,150.32,150.25,13.62491295]
[1726817416727,0.37647,150.32,150.25,13.62491295]
[1726817418642,0.37647,150.3,150.24,20.0]
[1726817423828,0.37647,150.3,150.25,13.62491295]
[1726817434152,20.1854298,150.35,150.27,13.62491295]
[1726817434352,20.1854298,150.35,150.24,20.0]
[1726817434353,0.1854298,150.35,150.29,13.62491295]
[1726817434655,0.1854298,150.35,150.24,20.0]
[1726817434840,6.8365298,150.35,150.27,13.62491295]
[1726817435660,0.37647,150.34,150.27,13.62491295]
[1726817436356,0.1854298,150.35,150.31,13.62491295]
[1726817438767,0.1854298,150.35,150.33,13.62491295]
[1726817440864,0.1313333,150.35,150.33,13.62491295]
[1726817441060,0.1313333,150.35,150.3,20.0]
[1726817443877,0.1313333,150.35,150.31,13.62491295]
[1726817444465,0.1313333,150.35,150.33,13.62491295]
[1726817444969,0.1313333,150.35,150.34,20.0]
[1726817448462,0.1313333,150.35,150.34,43.776884]
[1726817448869,0.1313333,150.35,150.34,59.691484]
[1726817449267,0.1313333,150.35,150.34,35.9146]
[1726817450775,0.1313333,150.35,149.98,661.17187037]
[1726817450776,6.6563,150.24,150.22,0.1208316]
[1726817450963,25.56732137,150.23,150.22,0.1208316]
[1726817451357,0.12549,150.23,150.22,0.1208316]
[1726817451559,1.79012366,150.23,150.22,0.1208316]
[1726817452173,20.0,150.25,150.22,0.1208316]
[1726817452378,38.71638479,150.23,150.22,0.1208316]
[1726817452853,59.09285479,150.23,150.22,0.1208316]
[1726817453254,57.77826695,150.23,150.22,0.1208316]
[1726817453562,59.44324097,150.23,150.22,0.1208316]
[1726817453968,45.81832802,150.23,150.22,0.1208316]
[1726817454972,1.91584624,150.23,150.22,0.1208316]
[1726817456174,1.66459879,150.25,150.22,0.1208316]
[1726817456389,8.58958478,150.28,150.22,0.1208316]
[1726817456758,27.97185812,150.27,150.22,0.1208316]
[1726817456963,1.66452362,150.26,150.22,0.1208316]
[1726817457860,0.12549,150.26,150.22,0.1208316]
[1726817458084,13.1421333,150.33,150.22,0.1208316]
[1726817458085,21.31705812,150.31,150.22,0.1208316]
[1726817458277,30.63633012,150.31,150.22,0.1208316]
[1726817458483,1.66421765,150.3,150.22,0.1208316]
[1726817458670,30.63633012,150.31,150.22,0.1208316]
[1726817459186,20.0,150.3,150.22,0.1208316]
[1726817459365,24.153354,150.29,150.22,0.1208316]
[1726817460266,25.81757259,150.29,150.22,0.1208316]
[1726817460472,0.12549,150.29,150.22,0.1208316]
[1726817461976,0.37647,150.28,150.22,0.1208316]
[1726817462287,0.12549,150.29,150.22,0.1208316]
[1726817462664,0.12549,150.31,150.22,23.8977156]
[1726817462864,0.1313333,150.33,150.23,41.31705812]
[1726817463084,0.1313333,150.33,150.24,1.01344317]
[1726817463287,0.1313333,150.33,150.25,21.31705812]
[1726817463490,0.1313333,150.33,150.26,20.0]
[1726817465472,0.1313333,150.33,150.27,6.5606]
[1726817466172,0.12549,150.32,150.27,6.5606]
[1726817466670,0.1313333,150.33,150.27,6.5606]
[1726817467878,0.1313333,150.33,150.28,16.1827]
[1726817468389,0.1313333,150.33,150.28,37.49975812]
[1726817469383,0.1313333,150.33,150.29,20.0]
[1726817473188,1.79429987,150.33,150.29,20.0]
[1726817473377,0.1313333,150.33,150.29,20.0]
[1726817476291,0.1313333,150.33,150.3,22.32882501]
[1726817476492,0.1313333,150.33,150.31,20.0]
[1726817476697,0.1313333,150.33,150.31,21.01178233]
[1726817476991,0.1313333,150.33,150.31,20.0]
[1726817477501,0.1313333,150.33,150.32,66.10513152]
[1726817477691,0.1313333,150.33,150.32,65.09394212]
[1726817478379,0.2521649,150.38,150.32,65.09394212]
[1726817478380,0.2521649,150.38,150.33,43.776884]